fUST/lending_fUST_20240918
["ID","MTS","AMOUNT","RATE_DAILY","PERIOD"]
[338448993,1726644638914,-500.0,0.00018166,2]
[338448994,1726644638925,-500.0,0.00018166,2]
[338448995,1726644638938,-500.0,0.00018166,2]
[338448996,1726644638950,-500.0,0.00018166,2]
[338448997,1726644638961,-500.0,0.00018166,2]
[338448998,1726644638970,-500.0,0.00018166,2]
[338448999,1726644638981,-500.0,0.00018166,2]
[338449000,1726644638990,-279.79910514,0.00018166,2]
[338449001,1726644638999,-500.0,0.00018166,2]
[338449002,1726644639010,-500.0,0.00018166,2]
[338449003,1726644639020,-500.0,0.00018166,2]
[338449004,1726644639030,-500.0,0.00018166,2]
[338449005,1726644639040,-23567.1105365,0.00018272,2]
[338449006,1726644639049,-10657.5613185,0.00018272,2]
[338449007,1726644639059,-150.112233,0.000183,2]
[338449008,1726644639069,-167.72610514,0.00018405,2]
[338449009,1726644639078,-500.0,0.00018494,2]
[338449010,1726644639088,-317.61562085,0.00018494,2]
[338449011,1726644639097,-500.0,0.00018494,2]
[338449012,1726644639108,-500.0,0.00018494,2]
[338449013,1726644639118,-500.0,0.00018494,2]
[338449014,1726644639127,-632.33245427,0.00018494,2]
[338449015,1726644639137,-500.0,0.00018494,2]
[338449016,1726644639146,-500.0,0.00018494,2]
[338449017,1726644639156,-563.28350385,0.00018494,2]
[338449018,1726644639166,-500.0,0.00018494,2]
[338449019,1726644639175,-500.0,0.00018494,2]
[338449020,1726644639185,-500.0,0.00018494,2]
[338449021,1726644639196,-500.0,0.00018494,2]
[338449022,1726644639207,-500.0,0.00018494,2]
[338449023,1726644639217,-500.0,0.00018494,2]
[338449024,1726644639229,-500.0,0.00018494,2]
[338449025,1726644639241,-473.77657656,0.00018494,2]
[338449026,1726644639252,-500.0,0.00018494,2]
[338449027,1726644639264,-500.0,0.00018494,2]
[338449028,1726644639275,-306.1572023,0.00018494,2]
[338449029,1726644639286,-500.0,0.00018494,2]
[338449030,1726644639298,-500.0,0.00018494,2]
[338449031,1726644639308,-500.0,0.00018494,2]
[338449032,1726644639322,-500.0,0.00018494,2]
[338449033,1726644639332,-200.0,0.00018494,2]
[338449034,1726644639343,-500.0,0.00018494,2]
[338449035,1726644639353,-212.75567785,0.00018494,2]
[338449036,1726644639364,-500.0,0.00018494,2]
[338449037,1726644639374,-340.10459539,0.00018494,2]
[338449038,1726644639384,-171.80047404,0.00018494,2]
[338449039,1726644639394,-173570.91475,0.00018495,2]
[338449040,1726644639405,-21315.122637,0.00018495,2]
[338449041,1726644639416,-150.112233,0.000185,2]
[338449042,1726644639428,-150.112233,0.000186,2]
[338449043,1726644639439,-420.0,0.00018601,2]
[338449044,1726644639452,-150.112233,0.000187,2]
[338449045,1726644639463,-150.112233,0.000188,2]
[338449046,1726644639480,-153.0,0.00018823,2]
[338449047,1726644639495,-86785.457375,0.00018961,3]
[338449048,1726644639507,-10657.5613185,0.00018961,3]
[338449049,1726644639522,-150.112233,0.00019,2]
[338449050,1726644639534,-153.0,0.00019014,2]
[338449051,1726644639548,-153.5382873,0.00019014,2]
[338449052,1726644639560,-3193.87143303,0.00019034,2]
[338449053,1726644639572,-64045.82850017,0.00019048,2]
[338449055,1726644639581,-1220.18592803,0.0001905,2]
[338449056,1726644639593,-472558.04053127,0.000191,2]
[338449057,1726644639605,-153.0,0.000191,2]
[338449058,1726644639617,-4042.0,0.000191,2]
[338449059,1726644639628,-150.112233,0.000191,2]
[338449060,1726644639640,-74602.9292295,0.00019138,3]
[338449061,1726644639653,-2977.13514684,0.0001915,2]
[338449062,1726644639665,-21315.122637,0.00019168,3]
[338449063,1726644639677,-500.0,0.00019173,2]
[338449064,1726644639686,-1000.0,0.00019178,2]
[338449065,1726644639696,-500.0,0.00019178,2]
[338449066,1726644639706,-1307.61,0.00019178,2]
[338449067,1726644639716,-838.57,0.00019178,2]
[338449068,1726644639728,-500.0,0.00019178,2]
[338449069,1726644639740,-500.0,0.00019178,2]
[338449070,1726644639750,-500.0,0.00019178,2]
[338449071,1726644639762,-500.0,0.00019178,2]
[338449072,1726644639772,-518.31,0.00019178,2]
[338449073,1726644639783,-507.05187652,0.00019178,2]
[338449074,1726644639793,-500.0,0.00019178,2]
[338449075,1726644639803,-2256.24,0.00019178,2]
[338449076,1726644639814,-891.01,0.00019178,2]
[338449077,1726644639826,-500.0,0.00019178,2]
[338449078,1726644639838,-500.0,0.00019178,2]
[338449079,1726644639850,-500.0,0.00019178,2]
[338449080,1726644639863,-500.0,0.00019178,2]
[338449081,1726644639874,-500.0,0.00019178,2]
[338449082,1726644639885,-500.0,0.00019178,2]
[338449083,1726644639898,-671.86,0.00019178,2]
[338449084,1726644639909,-223.49469264,0.00019178,2]
[338449085,1726644639920,-179.98,0.00019178,2]
[338449086,1726644639932,-1000.0,0.00019178,2]
[338449087,1726644639944,-167.19749,0.00019178,2]
[338449089,1726644639954,-174.092188,0.00019178,2]
[338449091,1726644639966,-1573.470296,0.00019178,2]
[338449092,1726644639977,-150.112233,0.000192,2]
[338449093,1726644639989,-150.112233,0.000192,2]
[338449094,1726644640000,-150.112236,0.000192,2]
[338449095,1726644640011,-153.4933528,0.000192,2]
[338449096,1726644640024,-150.112233,0.000192,2]
[338449097,1726644640035,-3193.87143303,0.00019232,2]
[338449098,1726644640046,-3000.0,0.00019352,2]
[338449099,1726644640057,-12189.66918132,0.00019352,2]
[338449100,1726644640073,-150.112233,0.000194,2]
[338449101,1726644640085,-10657.5613185,0.00019442,3]
[338449102,1726644640096,-12064.83262104,0.00019451,2]
[338449103,1726644640107,-165.687022,0.00019452,2]
[338449104,1726644640120,-151.0,0.00019452,2]
[338449105,1726644640132,-500.0,0.00019452,2]
[338449106,1726644640142,-1000.0,0.00019452,2]
[338449107,1726644640154,-513.63778498,0.00019452,2]
[338449108,1726644640165,-1307.61,0.00019452,2]
[338449109,1726644640177,-838.57,0.00019452,2]
[338449110,1726644640188,-500.0,0.00019452,2]
[338449111,1726644640200,-500.0,0.00019452,2]
[338449112,1726644640211,-500.0,0.00019452,2]
[338449113,1726644640222,-500.0,0.00019452,2]
[338449114,1726644640232,-518.31,0.00019452,2]
[338449115,1726644640243,-500.0,0.00019452,2]
[338449116,1726644640255,-2256.24,0.00019452,2]
[338449117,1726644640266,-891.01,0.00019452,2]
[338449118,1726644640278,-500.0,0.00019452,2]
[338449119,1726644640288,-500.0,0.00019452,2]
[338449120,1726644640300,-205.35407231,0.00019452,2]
[338449121,1726644640312,-500.0,0.00019452,2]
[338449122,1726644640324,-500.0,0.00019452,2]
[338449123,1726644640334,-500.0,0.00019452,2]
[338449124,1726644640347,-671.86,0.00019452,2]
[338449125,1726644640358,-151.0,0.00019452,2]
[338449126,1726644640376,-1430.128825,0.00019452,2]
[338449127,1726644640386,-1430.128825,0.00019452,2]
[338449128,1726644640397,-154.795383,0.00019452,2]
[338449129,1726644640408,-151.0,0.00019452,2]
[338449130,1726644640420,-154.946537,0.00019452,2]
[338449131,1726644640431,-151.291991,0.00019452,2]
[338449132,1726644640444,-151.291991,0.00019452,2]
[338449133,1726644640457,-151.0,0.00019452,2]
[338449134,1726644640469,-151.0,0.00019452,2]
[338449135,1726644640481,-506.45099187,0.00019452,2]
[338449136,1726644640495,-500.0,0.00019452,2]
[338449137,1726644640508,-522.25634702,0.00019473,2]
[338449138,1726644640520,-591.02249132,0.00019473,2]
[338449139,1726644640533,-500.0,0.00019473,2]
[338449140,1726644640545,-500.37104256,0.00019473,2]
[338449141,1726644640555,-500.38961539,0.00019473,2]
[338449142,1726644640569,-500.48891412,0.00019473,2]
[338449143,1726644640580,-500.92865773,0.00019473,2]
[338449144,1726644640593,-500.4431137,0.00019473,2]
[338449145,1726644640605,-500.76551568,0.00019473,2]
[338449146,1726644640618,-360.07202762,0.00019473,2]
[338449147,1726644640628,-513.32263156,0.00019473,2]
[338449148,1726644640640,-254.69698023,0.00019473,2]
[338449149,1726644640654,-63945.367911,0.0001949,3]
[338449150,1726644640666,-11339.14947988,0.000195,5]
[338449151,1726644640677,-4030.85,0.000195,2]
[338449152,1726644640689,-43815.02,0.000195,2]
[338449153,1726644640700,-21204.43,0.000195,2]
[338449154,1726644640711,-1200.85,0.000195,2]
[338449155,1726644640721,-267256.63,0.000195,2]
[338449156,1726644640731,-151.0,0.000195,2]
[338449157,1726644640741,-151.0,0.000195,2]
[338449158,1726644640753,-242.731929,0.000195,2]
[338449159,1726644640764,-1430.128825,0.000195,2]
[338449160,1726644640776,-1430.128825,0.000195,2]
[338449161,1726644640787,-151.0,0.000195,2]
[338449162,1726644640797,-151.291991,0.000195,2]
[338449163,1726644640807,-151.291991,0.000195,2]
[338449164,1726644640818,-151.0,0.000195,2]
[338449165,1726644640827,-151.0,0.000195,2]
[338449166,1726644640838,-151.0,0.000195,2]
[338449167,1726644640848,-306.4082058,0.00019507,2]
[338449168,1726644640858,-159.9027995,0.00019564,2]
[338449169,1726644640869,-153.538,0.00019621,2]
[338449170,1726644640879,-608.596,0.00019621,2]
[338449171,1726644640889,-1216.0,0.00019621,2]
[338449172,1726644640899,-151.0,0.00019726,2]
[338449173,1726644640909,-500.0,0.00019726,2]
[338449174,1726644640919,-1307.61,0.00019726,2]
[338449175,1726644640930,-838.57,0.00019726,2]
[338449176,1726644640940,-500.0,0.00019726,2]
[338449177,1726644640951,-500.0,0.00019726,2]
[338449178,1726644640961,-455.29247255,0.00019726,2]
[338449179,1726644640980,-500.0,0.00019726,2]
[338449180,1726644640992,-518.31,0.00019726,2]
[338449181,1726644641003,-500.0,0.00019726,2]
[338449182,1726644641013,-2256.24,0.00019726,2]
[338449183,1726644641023,-891.01,0.00019726,2]
[338449184,1726644641034,-500.0,0.00019726,2]
[338449185,1726644641241,-500.0,0.00019726,2]
[338449186,1726644641264,-155.461562,0.00019726,2]
[338449187,1726644641276,-151.491314,0.00019726,2]
[338449188,1726644641287,-500.0,0.00019726,2]
[338449189,1726644641298,-500.0,0.00019726,2]
[338449190,1726644641309,-500.0,0.00019726,2]
[338449191,1726644641321,-671.86,0.00019726,2]
[338449192,1726644641333,-1430.128825,0.00019726,2]
[338449193,1726644641343,-1430.128825,0.00019726,2]
[338449194,1726644641353,-151.0,0.00019726,2]
[338449195,1726644641364,-151.291991,0.00019726,2]
[338449196,1726644641374,-151.291991,0.00019726,2]
[338449197,1726644641384,-151.0,0.00019726,2]
[338449198,1726644641394,-151.0,0.00019726,2]
[338449199,1726644641405,-151.0,0.00019726,2]
[338449200,1726644641416,-151.0,0.00019726,2]
[338449201,1726644641429,-277.363101,0.00019726,2]
[338449202,1726644641440,-277.363101,0.00019726,2]
[338449203,1726644641451,-151.0,0.00019726,2]
[338449204,1726644641461,-205.875145,0.00019726,2]
[338449205,1726644641472,-205.875145,0.00019726,2]
[338449206,1726644641485,-500.0,0.00019773,2]
[338449207,1726644641500,-150.369,0.00019842,2]
[338449208,1726644641511,-150.276,0.00019842,2]
[338449209,1726644641526,-1573.470296,0.00019863,2]
[338449210,1726644641538,-1430.128825,0.00019867,2]
[338449211,1726644641549,-1430.128825,0.00019867,2]
[338449212,1726644641560,-151.0,0.00019867,2]
[338449213,1726644641572,-151.0,0.00019867,2]
[338449214,1726644641582,-1220.18592794,0.00019893,2]
[338449215,1726644641594,-1000.00000003,0.0001999,2]
[338449216,1726644641607,-273.68679289,0.0002,2]
[338449217,1726644641619,-2514.96689,0.0002,21]
[338449218,1726644641630,-10000.0,0.0002,2]
[338449219,1726644641643,-10000.0,0.0002,2]
[338449220,1726644641653,-10000.0,0.0002,2]
[338449221,1726644641665,-10000.0,0.0002,2]
[338449222,1726644641675,-1500.0,0.0002,2]
[338449223,1726644641685,-178.51466547,0.0002,15]
[338449224,1726644641695,-151.0,0.0002,2]
[338449225,1726644641705,-500.0,0.0002,2]
[338449226,1726644641715,-1307.61,0.0002,2]
[338449227,1726644641727,-838.57,0.0002,2]
[338449228,1726644641738,-500.0,0.0002,2]
[338449229,1726644641749,-500.0,0.0002,2]
[338449230,1726644641760,-500.0,0.0002,2]
[338449231,1726644641771,-518.31,0.0002,2]
[338449232,1726644641782,-500.0,0.0002,2]
[338449233,1726644641794,-2256.24,0.0002,2]
[338449234,1726644641804,-891.01,0.0002,2]
[338449235,1726644641816,-337.47419026,0.0002,2]
[338449236,1726644641826,-500.0,0.0002,2]
[338449237,1726644641837,-500.0,0.0002,2]
[338449238,1726644641847,-506.89914201,0.0002,2]
[338449239,1726644641859,-500.0,0.0002,2]
[338449240,1726644641870,-671.86,0.0002,2]
[338449241,1726644641880,-1430.128825,0.0002,2]
[338449242,1726644641890,-1430.128825,0.0002,2]
[338449243,1726644641902,-1430.128825,0.0002,2]
[338449244,1726644641912,-1430.128825,0.0002,2]
[338449245,1726644641925,-151.0,0.0002,2]
[338449246,1726644641934,-152.108278,0.0002,2]
[338449247,1726644641945,-221.740558,0.0002,2]
[338449248,1726644641954,-151.291991,0.0002,2]
[338449249,1726644641965,-151.291991,0.0002,2]
[338449250,1726644641974,-151.291991,0.0002,2]
[338449251,1726644641986,-151.291991,0.0002,2]
[338449252,1726644641997,-151.0,0.0002,2]
[338449253,1726644642008,-151.0,0.0002,2]
[338449254,1726644642018,-151.0,0.0002,2]
[338449255,1726644642030,-249.992849,0.0002,2]
[338449256,1726644642040,-151.0,0.0002,2]
[338449257,1726644642051,-264.603723,0.0002,2]
[338449258,1726644642061,-277.363101,0.0002,2]
[338449259,1726644642071,-277.363101,0.0002,2]
[338449260,1726644642083,-151.0,0.0002,2]
[338449261,1726644642095,-151.0,0.0002,2]
[338449262,1726644642107,-205.875145,0.0002,2]
[338449263,1726644642118,-205.875145,0.0002,2]
[338449264,1726644642129,-151.0,0.0002,2]
[338449265,1726644642144,-151.0,0.0002,2]
[338449266,1726644642155,-151.0,0.0002,2]
[338449267,1726644642165,-188.942496,0.0002,2]
[338449268,1726644642175,-188.942496,0.0002,2]
[338449269,1726644642185,-151.0,0.0002,2]
[338449270,1726644642195,-151.0,0.0002,2]
[338449271,1726644642205,-151.0,0.0002,2]
[338449272,1726644642214,-185.979843,0.0002,2]
[338449273,1726644642224,-185.979843,0.0002,2]
[338449274,1726644642234,-151.0,0.0002,2]
[338449275,1726644642244,-151.0,0.0002,2]
[338449276,1726644642253,-151.0,0.0002,2]
[338449277,1726644642263,-1120.206833,0.0002,2]
[338449278,1726644642273,-1120.206833,0.0002,2]
[338449279,1726644642283,-787.645506,0.0002,2]
[338449280,1726644642292,-787.645506,0.0002,2]
[338449281,1726644642302,-167.683118,0.0002,2]
[338449282,1726644642311,-167.683118,0.0002,2]
[338449283,1726644642321,-500.0,0.00020039,2]
[338449284,1726644642331,-500.0,0.00020039,2]
[338449285,1726644642341,-500.0,0.00020039,2]
[338449286,1726644642350,-500.0,0.00020039,2]
[338449287,1726644642360,-500.35776297,0.00020039,2]
[338449288,1726644642370,-500.0,0.00020039,2]
[338449289,1726644642380,-500.38098052,0.00020039,2]
[338449291,1726644642390,-500.0,0.00020039,2]
[338449293,1726644642400,-500.0,0.00020039,2]
[338449295,1726644642410,-160.04022025,0.00020115,2]
[338449296,1726644642420,-500.49163467,0.00020115,2]
[338449297,1726644642430,-500.0,0.00020115,2]
[338449298,1726644642440,-500.0,0.00020115,2]
[338449299,1726644642449,-160.11335754,0.000202,2]
[338449300,1726644642459,-500.0,0.000202,2]
[338449301,1726644642469,-500.0,0.000202,2]
[338449302,1726644642479,-500.0,0.00020273,2]
[338449303,1726644642492,-1307.61,0.00020273,2]
[338449304,1726644642503,-838.57,0.00020273,2]
[338449305,1726644642513,-500.0,0.00020273,2]
[338449306,1726644642523,-533.91018441,0.00020273,2]
[338449307,1726644642535,-500.0,0.00020273,2]
[338449308,1726644642545,-518.31,0.00020273,2]
[338449309,1726644642556,-500.0,0.00020273,2]
[338449310,1726644642568,-2256.24,0.00020273,2]
[338449311,1726644642580,-891.01,0.00020273,2]
[338449312,1726644642591,-500.0,0.00020273,2]
[338449313,1726644642602,-500.0,0.00020273,2]
[338449314,1726644642614,-500.0,0.00020273,2]
[338449315,1726644642625,-671.86,0.00020273,2]
[338449316,1726644642635,-1430.128825,0.00020273,2]
[338449317,1726644642648,-1430.128825,0.00020273,2]
[338449318,1726644642660,-221.740558,0.00020273,2]
[338449319,1726644642670,-151.291991,0.00020273,2]
[338449320,1726644642680,-151.291991,0.00020273,2]
[338449321,1726644642691,-151.0,0.00020273,2]
[338449322,1726644642702,-151.0,0.00020273,2]
[338449323,1726644642712,-277.363101,0.00020273,2]
[338449324,1726644642723,-277.363101,0.00020273,2]
[338449325,1726644642733,-151.0,0.00020273,2]
[338449326,1726644642744,-299.137519,0.00020273,2]
[338449327,1726644642756,-205.875145,0.00020273,2]
[338449328,1726644642768,-205.875145,0.00020273,2]
[338449329,1726644642781,-151.0,0.00020273,2]
[338449330,1726644642792,-151.0,0.00020273,2]
[338449331,1726644642804,-151.0,0.00020273,2]
[338449332,1726644642815,-151.0,0.00020273,2]
[338449333,1726644642828,-151.0,0.00020273,2]
[338449334,1726644642841,-200.91528279,0.00020376,2]
[338449335,1726644642853,-500.50555096,0.00020376,2]
[338449336,1726644642864,-587.0,0.00020461,2]
[338449338,1726644642877,-151.0,0.00020542,2]
[338449340,1726644642887,-188.942496,0.00020542,2]
[338449342,1726644642897,-188.942496,0.00020542,2]
[338449343,1726644642907,-185.979843,0.00020542,2]
[338449345,1726644642916,-185.979843,0.00020542,2]
[338449347,1726644642926,-167.683118,0.00020542,2]
[338449349,1726644642936,-167.683118,0.00020542,2]
[338449351,1726644642947,-1000.0,0.00020542,2]
[338449352,1726644642959,-500.0,0.00020547,2]
[338449353,1726644642970,-1307.61,0.00020547,2]
[338449354,1726644642983,-838.57,0.00020547,2]
[338449355,1726644642994,-500.0,0.00020547,2]
[338449356,1726644643005,-600.09735374,0.00020547,2]
[338449358,1726644643015,-518.31,0.00020547,2]
[338449360,1726644643025,-500.0,0.00020547,2]
[338449362,1726644643035,-2256.24,0.00020547,2]
[338449363,1726644643045,-891.01,0.00020547,2]
[338449365,1726644643057,-500.0,0.00020547,2]
[338449367,1726644643068,-500.0,0.00020547,2]
[338449369,1726644643079,-500.0,0.00020547,2]
[338449370,1726644643089,-671.86,0.00020547,2]
[338449371,1726644643099,-1430.128825,0.00020547,2]
[338449372,1726644643110,-1430.128825,0.00020547,2]
[338449373,1726644643120,-1430.128825,0.00020547,2]
[338449374,1726644643130,-1430.128825,0.00020547,2]
[338449375,1726644643141,-221.740558,0.00020547,2]
[338449376,1726644643151,-221.740558,0.00020547,2]
[338449377,1726644643162,-151.291991,0.00020547,2]
[338449378,1726644643173,-151.291991,0.00020547,2]
[338449379,1726644643183,-151.291991,0.00020547,2]
[338449380,1726644643195,-151.291991,0.00020547,2]
[338449381,1726644643205,-151.0,0.00020547,2]
[338449382,1726644643216,-151.0,0.00020547,2]
[338449383,1726644643226,-151.0,0.00020547,2]
[338449384,1726644643236,-277.363101,0.00020547,2]
[338449385,1726644643246,-277.363101,0.00020547,2]
[338449386,1726644643256,-151.0,0.00020547,2]
[338449387,1726644643265,-151.0,0.00020547,2]
[338449388,1726644643275,-151.0,0.00020547,2]
[338449389,1726644643286,-151.0,0.00020547,2]
[338449390,1726644643296,-787.645506,0.00020547,2]
[338449391,1726644643308,-787.645506,0.00020547,2]
[338449392,1726644643321,-178.345866,0.00020547,2]
[338449393,1726644643331,-178.345866,0.00020547,2]
[338449394,1726644643341,-160.86528,0.00020547,2]
[338449395,1726644643352,-160.86528,0.00020547,2]
[338449396,1726644643364,-151.0,0.00020547,2]
[338449397,1726644643375,-151.0,0.00020547,2]
[338449398,1726644643386,-1000.0,0.00020547,2]
[338449399,1726644643396,-1573.470296,0.00020548,2]
[338449400,1726644643409,-1220.18592794,0.00020736,2]
[338449401,1726644643420,-500.0,0.00020821,2]
[338449402,1726644643430,-1307.61,0.00020821,2]
[338449403,1726644643441,-838.57,0.00020821,2]
[338449404,1726644643451,-500.0,0.00020821,2]
[338449405,1726644643462,-518.31,0.00020821,2]
[338449406,1726644643618,-500.0,0.00020821,2]
[338449407,1726644643631,-2256.24,0.00020821,2]
[338449408,1726644643643,-891.01,0.00020821,2]
[338449409,1726644643655,-500.0,0.00020821,2]
[338449410,1726644643666,-500.0,0.00020821,2]
[338449411,1726644643676,-607.21718932,0.00020821,2]
[338449412,1726644643687,-671.86,0.00020821,2]
[338449413,1726644643697,-1430.128825,0.00020821,2]
[338449414,1726644643707,-1430.128829,0.00020821,2]
[338449415,1726644643718,-221.740561,0.00020821,2]
[338449416,1726644643729,-151.291991,0.00020821,2]
[338449417,1726644643739,-151.291991,0.00020821,2]
[338449418,1726644643750,-157.543064,0.00020821,2]
[338449419,1726644643760,-277.363101,0.00020821,2]
[338449420,1726644643771,-277.363101,0.00020821,2]
[338449421,1726644643782,-151.0,0.00020821,2]
[338449422,1726644643793,-205.875145,0.00020821,2]
[338449423,1726644643804,-205.875145,0.00020821,2]
[338449424,1726644643815,-151.0,0.00020821,2]
[338449425,1726644643827,-151.0,0.00020821,2]
[338449426,1726644643839,-151.0,0.00020821,2]
[338449427,1726644643850,-188.942496,0.00020821,2]
[338449428,1726644643860,-188.942496,0.00020821,2]
[338449429,1726644643871,-185.979843,0.00020821,2]
[338449430,1726644643881,-185.979843,0.00020821,2]
[338449431,1726644643891,-1120.206833,0.00020821,2]
[338449432,1726644643903,-1120.206833,0.00020821,2]
[338449433,1726644643913,-167.683118,0.00020821,2]
[338449434,1726644643925,-167.683118,0.00020821,2]
[338449435,1726644643936,-171.354462,0.00020821,2]
[338449436,1726644643948,-171.354462,0.00020821,2]
[338449437,1726644643960,-151.0,0.00020821,2]
[338449438,1726644643970,-151.0,0.00020821,2]
[338449439,1726644643981,-1000.0,0.00020842,2]
[338449440,1726644643992,-1000.0,0.00021,2]
[338449441,1726644644003,-2000.0,0.00021,7]
[338449442,1726644644014,-1965.877993,0.00021,2]
[338449443,1726644644026,-1000.0,0.00021,21]
[338449444,1726644644039,-3769.0,0.00021,5]
[338449445,1726644644050,-3000.0,0.00021,2]
[338449446,1726644644062,-3000.0,0.0002101,2]
[338449447,1726644644074,-3000.0,0.0002102,2]
[338449448,1726644644086,-3000.0,0.0002103,2]
[338449449,1726644644097,-3000.0,0.0002104,2]
[338449450,1726644644110,-3000.0,0.0002105,2]
[338449451,1726644644122,-3000.0,0.0002106,2]
[338449452,1726644644133,-3000.0,0.0002107,2]
[338449453,1726644644143,-3000.0,0.0002108,2]
[338449454,1726644644154,-3000.0,0.0002109,2]
[338449455,1726644644164,-500.0,0.00021095,2]
[338449456,1726644644176,-1307.61,0.00021095,2]
[338449457,1726644644186,-838.57,0.00021095,2]
[338449458,1726644644196,-500.0,0.00021095,2]
[338449459,1726644644207,-518.31,0.00021095,2]
[338449460,1726644644217,-500.0,0.00021095,2]
[338449461,1726644644228,-2256.24,0.00021095,2]
[338449462,1726644644240,-891.01,0.00021095,2]
[338449463,1726644644251,-500.0,0.00021095,2]
[338449464,1726644644263,-500.0,0.00021095,2]
[338449465,1726644644274,-671.86,0.00021095,2]
[338449466,1726644644284,-151.291991,0.00021095,2]
[338449467,1726644644294,-151.291987,0.00021095,2]
[338449468,1726644644305,-205.875145,0.00021095,2]
[338449469,1726644644316,-205.875145,0.00021095,2]
[338449470,1726644644326,-151.0,0.00021095,2]
[338449471,1726644644336,-5000.0,0.00021095,2]
[338449472,1726644644347,-3618.255437,0.00021095,2]
[338449473,1726644644358,-151.0,0.00021095,2]
[338449474,1726644644371,-151.0,0.00021095,2]
[338449475,1726644644381,-151.0,0.000211,2]
[338449476,1726644644391,-4365.130001,0.000211,2]
[338449477,1726644644401,-151.0,0.000211,2]
[338449478,1726644644412,-151.0,0.000211,2]
[338449479,1726644644423,-1000.0,0.00021142,2]
[338449480,1726644644434,-267256.63,0.000212,2]
[338449481,1726644644444,-277.363101,0.000212,2]
[338449482,1726644644455,-277.363101,0.000212,2]
[338449483,1726644644466,-205.875145,0.000212,2]
[338449484,1726644644477,-205.875145,0.000212,2]
[338449485,1726644644488,-151.0,0.000212,2]
[338449486,1726644644504,-188.942496,0.000212,2]
[338449487,1726644644516,-188.942496,0.000212,2]
[338449488,1726644644526,-185.979843,0.000212,2]
[338449489,1726644644536,-185.979843,0.000212,2]
[338449490,1726644644547,-258.672467,0.000212,2]
[338449491,1726644644557,-151.0,0.000212,2]
[338449492,1726644644569,-151.0,0.000212,2]
[338449493,1726644644579,-1120.206833,0.000212,2]
[338449494,1726644644591,-1120.206833,0.000212,2]
[338449495,1726644644603,-787.645506,0.000212,2]
[338449496,1726644644613,-787.645506,0.000212,2]
[338449497,1726644644624,-167.683118,0.000212,2]
[338449498,1726644644635,-167.683118,0.000212,2]
[338449499,1726644644646,-178.345866,0.000212,2]
[338449500,1726644644657,-178.345866,0.000212,2]
[338449501,1726644644668,-160.86528,0.000212,2]
[338449502,1726644644678,-160.86528,0.000212,2]
[338449503,1726644644688,-171.354462,0.000212,2]
[338449504,1726644644698,-151.0,0.000212,2]
[338449505,1726644644709,-171.354462,0.000212,2]
[338449506,1726644644721,-151.0,0.000212,2]
[338449507,1726644644731,-151.0,0.000212,2]
[338449508,1726644644741,-346.681576,0.000212,2]
[338449509,1726644644754,-154.742121,0.000212,2]
[338449510,1726644644764,-151.0,0.000212,2]
[338449511,1726644644775,-346.681576,0.000212,2]